fUST/lending_fUST_20240517
["ID","MTS","AMOUNT","RATE_DAILY","PERIOD"]
[327273962,1715953937369,273.37336231,9.9e-05,2]
[327273963,1715953946967,273.37336231,9.9e-05,2]
[327273964,1715953958023,273.37336231,9.9e-05,2]
[327273965,1715953967710,273.37336231,9.9e-05,2]
[327273966,1715953977868,273.37336231,9.9e-05,2]
[327273967,1715953989257,273.37336231,9.9e-05,2]
[327273968,1715954000948,273.37336231,9.9e-05,2]
[327273969,1715954010688,273.37336231,9.9e-05,2]
[327273970,1715954020192,273.37336231,9.9e-05,2]
[327273971,1715954020952,675.749847,9.999e-05,2]
[327273972,1715954029975,273.37336231,9.9e-05,2]
[327273973,1715954040799,273.37336231,9.9e-05,2]
[327273974,1715954051859,273.37336231,9.9e-05,2]
[327273975,1715954065400,273.37336231,9.9e-05,2]
[327273976,1715954075478,273.37336231,9.9e-05,2]
[327273977,1715954085385,273.37336231,9.9e-05,2]
[327273978,1715954095591,273.37336231,9.9e-05,2]
[327273979,1715954105617,273.37336231,9.9e-05,2]
[327273980,1715954115422,273.37336231,9.9e-05,2]
[327273981,1715954124225,273.37336231,9.9e-05,2]
[327273982,1715954137453,273.37336231,9.9e-05,2]
[327273983,1715954151234,273.37336231,9.9e-05,2]
[327273984,1715954160972,273.37336231,9.9e-05,2]
[327273985,1715954169991,273.37336231,9.9e-05,2]
[327273986,1715954179188,273.37336231,9.9e-05,2]
[327273987,1715954190399,273.37336231,9.9e-05,2]
[327274010,1715954491605,1885.19395395,9.999e-05,2]
[327274011,1715954613600,453.24,0.00010959,2]
[327274012,1715954624167,377.7,0.00010959,2]
[327274013,1715954634978,314.75,0.00010959,2]
[327274014,1715954645552,262.29,0.00010959,2]
[327274015,1715954656353,218.58,0.00010959,2]
[327274016,1715954667154,182.15,0.00010959,2]
[327274017,1715954677720,151.79,0.00010959,2]
[327274018,1715954688310,151.79,0.00010959,2]
[327274019,1715954698890,607.18,0.00010959,2]
[327274175,1715955039050,-826.6192992,0.00015083,2]
[327274177,1715955039061,-246.656892,0.00015136,2]
[327274179,1715955039071,-23389.4663817,0.0001517,2]
[327274181,1715955039081,-2697.8983489,0.00015277,2]
[327274183,1715955039091,-1202.89992868,0.00016155,2]
[327274185,1715955039101,-266.31308287,0.00016254,2]
[327274187,1715955039110,-154.84515485,0.00016255,2]
[327274189,1715955039120,-154.91070564,0.00016255,2]
[327274191,1715955039134,-452.39782894,0.00016255,2]
[327274193,1715955039144,-1835.79060014,0.00016255,2]
[327274195,1715955039154,-4013.60489495,0.00016255,2]
[327274197,1715955039165,-264.232499,0.00016255,2]
[327274199,1715955039174,-273.08901938,0.00016255,2]
[327274201,1715955039184,-154.82968734,0.00016255,2]
[327274203,1715955039193,-3061.48679003,0.00016255,2]
[327274205,1715955039203,-1402.75151276,0.00016255,2]
[327274207,1715955039213,-154.81422293,0.00016255,2]
[327274209,1715955039222,-236.44820243,0.00016255,2]
[327274211,1715955039231,-3232.63134506,0.00016256,2]
[327274213,1715955039241,-893.09021204,0.00016338,2]
[327274215,1715955039251,-500.0,0.00016438,2]
[327274217,1715955039260,-500.0,0.00016438,2]
[327274219,1715955039270,-500.69722533,0.00016438,2]
[327274221,1715955039279,-501.35068182,0.00016438,2]
[327274223,1715955039289,-331.28,0.00016438,2]
[327274224,1715955039298,-500.0,0.00016438,2]
[327274226,1715955039307,-500.0,0.00016438,2]
[327274228,1715955039316,-237.75,0.00016438,2]
[327274230,1715955039326,-500.0,0.00016438,2]
[327274233,1715955039335,-500.0,0.00016438,2]
[327274234,1715955039344,-501.683168,0.00016438,2]
[327274236,1715955039353,-500.0,0.00016438,2]
[327274238,1715955039363,-505.97161806,0.00016438,2]
[327274240,1715955039372,-500.0,0.00016438,2]
[327274242,1715955039386,-500.0,0.00016438,2]
[327274244,1715955039396,-247.05,0.00016438,2]
[327274246,1715955039405,-500.0,0.00016438,2]
[327274249,1715955039414,-421.37,0.00016438,2]
[327274251,1715955039424,-500.0,0.00016438,2]
[327274253,1715955039433,-500.0,0.00016438,2]
[327274255,1715955039443,-500.0,0.00016438,2]
[327274256,1715955039452,-348.90967529,0.00016438,2]
[327274259,1715955039461,-500.0,0.00016438,2]
[327274261,1715955039471,-500.0,0.00016438,2]
[327274263,1715955039481,-500.0,0.00016438,2]
[327274264,1715955039490,-360.4997949,0.00016438,2]
[327274266,1715955039499,-500.0,0.00016438,2]
[327274268,1715955039508,-500.0,0.00016438,2]
[327274270,1715955039517,-500.0,0.00016438,2]
[327274272,1715955039526,-500.0,0.00016438,2]
[327274274,1715955039536,-500.0,0.00016438,2]
[327274276,1715955039545,-326.71865522,0.00016438,2]
[327274278,1715955039555,-500.0,0.00016438,2]
[327274280,1715955039564,-417.47249467,0.00016438,2]
[327274282,1715955039574,-500.0,0.00016438,2]
[327274284,1715955039583,-500.0,0.00016438,2]
[327274286,1715955039592,-500.0,0.00016438,2]
[327274288,1715955039602,-500.0,0.00016438,2]
[327274290,1715955039611,-500.0,0.00016438,2]
[327274292,1715955039620,-500.0,0.00016438,2]
[327274294,1715955039631,-500.0,0.00016438,2]
[327274296,1715955039640,-500.0,0.00016438,2]
[327274298,1715955039649,-585.04,0.00016438,2]
[327274300,1715955039658,-500.0,0.00016438,2]
[327274302,1715955039668,-500.0,0.00016438,2]
[327274304,1715955039677,-500.0,0.00016438,2]
[327274306,1715955039687,-500.0,0.00016438,2]
[327274308,1715955039696,-500.0,0.00016438,2]
[327274310,1715955039705,-500.0,0.00016438,2]
[327274312,1715955039714,-500.0,0.00016438,2]
[327274314,1715955039724,-500.0,0.00016438,2]
[327274316,1715955039733,-500.54868686,0.00016438,2]
[327274318,1715955039742,-177.45,0.00016438,2]
[327274320,1715955039751,-500.0,0.00016438,2]
[327274322,1715955039760,-500.0,0.00016438,2]
[327274324,1715955039770,-383.78514551,0.00016438,2]
[327274326,1715955039779,-505.58600913,0.00016438,2]
[327274328,1715955039788,-500.0,0.00016438,2]
[327274330,1715955039798,-578.64,0.00016438,2]
[327274332,1715955039807,-151.0,0.00016438,2]
[327274334,1715955039817,-206.75056341,0.00016438,2]
[327274336,1715955039826,-501.84372558,0.00016438,2]
[327274338,1715955039835,-500.0,0.00016438,2]
[327274340,1715955039844,-500.85971969,0.00016438,2]
[327274342,1715955039853,-503.6156687,0.00016438,2]
[327274344,1715955039863,-529.72,0.00016438,2]
[327274346,1715955039872,-503.35615081,0.00016438,2]
[327274348,1715955039884,-501.10201678,0.00016438,2]
[327274350,1715955039893,-500.0,0.00016438,2]
[327274352,1715955039902,-500.0,0.00016438,2]
[327274354,1715955039912,-502.33216634,0.00016438,2]
[327274356,1715955039921,-500.0,0.00016438,2]
[327274358,1715955039931,-500.0,0.00016438,2]
[327274360,1715955039941,-504.72537349,0.00016438,2]
[327274375,1715955040077,-505.89911409,0.00016438,2]
[327274377,1715955040087,-500.4541003,0.00016438,2]
[327274379,1715955040097,-503.23549711,0.00016438,2]
[327274381,1715955040106,-501.4775317,0.00016438,2]
[327274383,1715955040116,-503.48828583,0.00016438,2]
[327274385,1715955040126,-312.31,0.00016438,2]
[327274388,1715955040135,-500.0,0.00016438,2]
[327274391,1715955040145,-500.0,0.00016438,2]
[327274394,1715955040156,-501.44855188,0.00016438,2]
[327274397,1715955040167,-501.15784892,0.00016438,2]
[327274400,1715955040176,-187.91517803,0.00016438,2]
[327274403,1715955040186,-622.72419462,0.00016438,2]
[327274406,1715955040197,-514.1380679,0.00016438,2]
[327274409,1715955040207,-506.37290017,0.00016438,2]
[327274412,1715955040216,-503.24770471,0.00016438,2]
[327274415,1715955040225,-500.0,0.00016438,2]
[327274418,1715955040235,-500.23394385,0.00016438,2]
[327274421,1715955040245,-500.0,0.00016438,2]
[327274424,1715955040255,-500.7342289,0.00016438,2]
[327274427,1715955040264,-501.96773197,0.00016438,2]
[327274430,1715955040273,-502.49611216,0.00016438,2]
[327274433,1715955040283,-502.22486288,0.00016438,2]
[327274436,1715955040292,-500.83302224,0.00016438,2]
[327274439,1715955040302,-501.58782745,0.00016438,2]
[327274442,1715955040311,-500.0,0.00016438,2]
[327274445,1715955040321,-501.52258063,0.00016438,2]
[327274448,1715955040330,-501.7450112,0.00016438,2]
[327274451,1715955040339,-511.39857816,0.00016438,2]
[327274454,1715955040349,-500.0,0.00016438,2]
[327274457,1715955040358,-497.58485344,0.00016438,2]
[327274460,1715955040368,-502.15376415,0.00016438,2]
[327274463,1715955040379,-500.0,0.00016438,2]
[327274466,1715955040388,-503.58039542,0.00016438,2]
[327274469,1715955040397,-506.35604843,0.00016438,2]
[327274472,1715955040406,-500.0,0.00016438,2]
[327274475,1715955040416,-501.05395287,0.00016438,2]
[327274477,1715955040425,-500.0,0.00016438,2]
[327274480,1715955040434,-500.0,0.00016438,2]
[327274483,1715955040443,-500.0,0.00016438,2]
[327274486,1715955040452,-504.4740575,0.00016438,2]
[327274488,1715955040462,-502.09108214,0.00016438,2]
[327274490,1715955040471,-531.25128795,0.00016438,2]
[327274492,1715955040481,-500.0,0.00016438,2]
[327274494,1715955040491,-503.51167733,0.00016438,2]
[327274496,1715955040500,-504.38140618,0.00016438,2]
[327274498,1715955040509,-502.0663975,0.00016438,2]
[327274500,1715955040519,-501.66056055,0.00016438,2]
[327274502,1715955040528,-507.80704234,0.00016438,2]
[327274504,1715955040538,-501.85975324,0.00016438,2]
[327274506,1715955040547,-501.8612547,0.00016438,2]
[327274508,1715955040557,-504.64613082,0.00016438,2]
[327274510,1715955040566,-503.41238744,0.00016438,2]
[327274512,1715955040576,-358.31,0.00016438,2]
[327274514,1715955040585,-530.23,0.00016438,2]
[327274516,1715955040594,-501.56644249,0.00016438,2]
[327274518,1715955040604,-395.24628114,0.00016438,2]
[327274520,1715955040615,-500.0,0.00016438,2]
[327274522,1715955040626,-208.11746729,0.00016438,2]
[327274524,1715955040635,-501.97497745,0.00016438,2]
[327274526,1715955040645,-500.0,0.00016438,2]
[327274528,1715955040654,-502.55552709,0.00016438,2]
[327274530,1715955040664,-500.0,0.00016438,2]
[327274531,1715955040673,-500.0,0.00016438,2]
[327274534,1715955040683,-309.92,0.00016438,2]
[327274536,1715955040692,-500.0,0.00016438,2]
[327274537,1715955040702,-258.6,0.00016438,2]
[327274539,1715955040711,-500.0,0.00016438,2]
[327274542,1715955040721,-500.0,0.00016438,2]
[327274543,1715955040731,-500.0,0.00016438,2]
[327274545,1715955040740,-500.0,0.00016438,2]
[327274548,1715955040749,-409.4,0.00016438,2]
[327274549,1715955040758,-500.0,0.00016438,2]
[327274552,1715955040768,-974.01,0.00016438,2]
[327274554,1715955040777,-500.0,0.00016438,2]
[327274556,1715955040787,-500.0,0.00016438,2]
[327274557,1715955040796,-500.0,0.00016438,2]
[327274560,1715955040805,-500.0,0.00016438,2]
[327274561,1715955040814,-500.0,0.00016438,2]
[327274563,1715955040824,-3178.21,0.00016438,2]
[327274565,1715955040834,-503.41350441,0.00016438,2]
[327274567,1715955040844,-502.00452264,0.00016438,2]
[327274569,1715955040853,-501.89316035,0.00016438,2]
[327274570,1715955040862,-500.0,0.00016438,2]
[327274571,1715955040871,-236.66931354,0.00016438,2]
[327274572,1715955040882,-500.0,0.00016438,2]
[327274573,1715955040891,-500.0,0.00016438,2]
[327274574,1715955040900,-295.41220081,0.00016438,2]
[327274575,1715955040909,-500.0,0.00016438,2]
[327274576,1715955040919,-500.0,0.00016438,2]
[327274577,1715955040928,-500.47322055,0.00016438,2]
[327274578,1715955040937,-501.76010348,0.00016438,2]
[327274579,1715955040947,-512.86079033,0.00016438,2]
[327274580,1715955040956,-500.0,0.00016438,2]
[327274581,1715955040966,-171.16,0.00016438,2]
[327274582,1715955040976,-500.0,0.00016438,2]
[327274583,1715955040990,-500.0,0.00016438,2]
[327274584,1715955040999,-500.57130247,0.00016438,2]
[327274585,1715955041008,-7416.77,0.00016438,2]
[327274586,1715955041018,-500.0,0.00016438,2]
[327274588,1715955041030,-1348.33,0.00016438,2]
[327274589,1715955041039,-500.0,0.00016438,2]
[327274591,1715955041049,-500.0,0.00016438,2]
[327274593,1715955041060,-244.22158648,0.00016438,2]
[327274595,1715955041069,-500.0,0.00016438,2]
[327274597,1715955041078,-717.71,0.00016438,2]
[327274599,1715955041087,-500.0,0.00016438,2]
[327274601,1715955041096,-500.0,0.00016438,2]
[327274603,1715955041106,-500.0,0.00016438,2]
[327274605,1715955041115,-500.0,0.00016438,2]
[327274607,1715955041124,-500.0,0.00016438,2]
[327274609,1715955041135,-500.0,0.00016438,2]
[327274611,1715955041145,-500.0,0.00016438,2]
[327274613,1715955041153,-500.0,0.00016438,2]
[327274615,1715955041162,-500.0,0.00016438,2]
[327274617,1715955041171,-500.0,0.00016438,2]
[327274619,1715955041180,-794.42,0.00016438,2]
[327274621,1715955041189,-500.0,0.00016438,2]
[327274623,1715955041198,-500.0,0.00016438,2]
[327274625,1715955041207,-500.0,0.00016438,2]
[327274627,1715955041216,-508.0415293,0.00016438,2]
[327274629,1715955041225,-500.0,0.00016438,2]
[327274630,1715955041235,-3761.03,0.00016438,2]
[327274632,1715955041244,-500.0,0.00016438,2]
[327274635,1715955041255,-500.0,0.00016438,2]
[327274637,1715955041265,-501.24730573,0.00016438,2]
[327274638,1715955041275,-500.0,0.00016438,2]
[327274640,1715955041284,-500.0,0.00016438,2]
[327274642,1715955041294,-500.0,0.00016438,2]
[327274644,1715955041303,-500.0,0.00016438,2]
[327274646,1715955041312,-500.0,0.00016438,2]
[327274648,1715955041321,-500.0,0.00016438,2]
[327274650,1715955041330,-500.0,0.00016438,2]
[327274652,1715955041339,-500.0,0.00016438,2]
[327274654,1715955041348,-500.0,0.00016711,2]
[327274656,1715955041357,-162.12183876,0.00016712,2]
[327274658,1715955041367,-231.21454636,0.00016712,2]
[327274660,1715955041379,-500.0,0.00016712,2]
[327274662,1715955041389,-500.0,0.00016712,2]
[327274664,1715955041398,-500.0,0.00016712,2]
[327274666,1715955041408,-500.0,0.00016712,2]
[327274669,1715955041421,-500.0,0.00016712,2]
[327274671,1715955041430,-500.0,0.00016712,2]
[327274673,1715955041439,-500.0,0.00016712,2]
[327274675,1715955041448,-500.0,0.00016712,2]
[327274677,1715955041457,-500.0,0.00016712,2]
[327274679,1715955041466,-331.52,0.00016712,2]
[327274681,1715955041475,-500.0,0.00016712,2]
[327274683,1715955041484,-291.56,0.00016712,2]
[327274685,1715955041493,-168.53,0.00016712,2]
[327274687,1715955041502,-500.0,0.00016712,2]
[327274689,1715955041511,-358.42,0.00016712,2]
[327274691,1715955041520,-500.0,0.00016712,2]
[327274693,1715955041530,-574.8269778,0.00016712,2]
[327274695,1715955041539,-511.98,0.00016712,2]
[327274697,1715955041548,-500.0,0.00016712,2]
[327274699,1715955041558,-500.0,0.00016712,2]
[327274701,1715955041567,-253.85877786,0.00016712,2]
[327274703,1715955041576,-552.96,0.00016712,2]
[327274705,1715955041586,-500.0,0.00016712,2]
[327274707,1715955041595,-260.78,0.00016712,2]
[327274709,1715955041604,-500.0,0.00016712,2]
[327274711,1715955041614,-361.93164902,0.00016712,2]
[327274713,1715955041623,-500.0,0.00016712,2]
[327274714,1715955041634,-500.0,0.00016712,2]
[327274716,1715955041643,-500.0,0.00016712,2]
[327274718,1715955041652,-500.0,0.00016712,2]
[327274721,1715955041662,-974.01,0.00016712,2]
[327274722,1715955041671,-500.0,0.00016712,2]
[327274725,1715955041681,-500.0,0.00016712,2]
[327274727,1715955041690,-3178.21,0.00016712,2]
[327274729,1715955041699,-500.0,0.00016712,2]
[327274731,1715955041710,-500.0,0.00016712,2]
[327274733,1715955041719,-500.0,0.00016712,2]
[327274735,1715955041728,-500.0,0.00016712,2]
[327274736,1715955041737,-434.50381828,0.00016712,2]
[327274742,1715955041783,-65.49618172,0.00016712,2]
[327274744,1715955041792,-646.00082583,0.00016712,2]
[327274752,1715955041857,-6598.3,0.00016712,2]
[327274754,1715955041868,-172.46917417,0.00016712,2]
[327274756,1715955041879,-1348.33,0.00016712,2]
[327274758,1715955041889,-500.0,0.00016712,2]
[327274760,1715955041898,-500.0,0.00016712,2]
[327274762,1715955041907,-717.71,0.00016712,2]
[327274764,1715955041917,-500.0,0.00016712,2]
[327274766,1715955041926,-500.0,0.00016712,2]
[327274768,1715955041935,-500.0,0.00016712,2]
[327274770,1715955041945,-510.52746801,0.00016712,2]
[327274772,1715955041954,-644.21,0.00016712,2]
[327274774,1715955041963,-500.0,0.00016712,2]
[327274776,1715955041974,-384.28,0.00016712,2]
[327274778,1715955041987,-500.0,0.00016712,2]
[327274780,1715955041996,-569.27,0.00016712,2]
[327274782,1715955042006,-794.42,0.00016712,2]
[327274784,1715955042015,-500.0,0.00016712,2]
[327274786,1715955042026,-500.0,0.00016712,2]
[327274788,1715955042035,-500.0,0.00016712,2]
[327274790,1715955042044,-3761.03,0.00016712,2]
[327274792,1715955042053,-398.63,0.00016712,2]
[327274794,1715955042063,-500.0,0.00016712,2]
[327274796,1715955042073,-500.0,0.00016712,2]
[327274798,1715955042082,-500.0,0.00016712,2]
[327274800,1715955042091,-500.0,0.00016712,2]
[327274802,1715955042101,-335.15,0.00016712,2]
[327274804,1715955042110,-500.0,0.00016985,2]
[327274806,1715955042119,-2173.89657913,0.00016986,3]
[327274808,1715955042129,-642.11,0.00016986,2]
[327274810,1715955042139,-500.0,0.00016986,2]
[327274812,1715955042148,-500.0,0.00016986,2]
[327274814,1715955042156,-500.0,0.00016986,2]
[327274816,1715955042166,-500.0,0.00016986,2]
[327274818,1715955042175,-526.98,0.00016986,2]
[327274820,1715955042184,-500.0,0.00016986,2]
[327274822,1715955042194,-500.0,0.00016986,2]
[327274824,1715955042203,-500.0,0.00016986,2]
[327274826,1715955042212,-500.0,0.00016986,2]
[327274829,1715955042222,-500.0,0.00016986,2]
[327274831,1715955042232,-500.0,0.00016986,2]
[327274833,1715955042241,-532.06,0.00016986,2]
[327274834,1715955042251,-500.0,0.00016986,2]
[327274837,1715955042260,-11.40862532,0.00016986,2]
[327274839,1715955042272,-488.59137468,0.00016986,2]
[327274841,1715955042281,-0.9252624,0.00016986,2]
[327275051,1715955044246,-572.91,0.00016438,2]
[327275053,1715955044256,-500.0,0.00016438,2]
[327275055,1715955044266,-500.0,0.00016712,2]
[327275057,1715955044275,-500.0,0.00016986,2]
[327275059,1715955044284,-500.0,0.00016986,2]
[327275061,1715955044295,-500.0,0.00016986,2]
[327275063,1715955044304,-974.01,0.00016986,2]
[327275065,1715955044313,-500.0,0.00016986,2]
[327275067,1715955044322,-500.0,0.00016986,2]
[327275069,1715955044332,-3178.21,0.00016986,2]
[327275071,1715955044341,-500.0,0.00016986,2]
[327275073,1715955044351,-500.0,0.00016986,2]
[327275075,1715955044360,-3994.65646375,0.00016986,2]
[327275554,1715955125147,273.37336231,9.9e-05,2]
[327275556,1715955135631,273.37336231,9.9e-05,2]
[327275557,1715955157909,281.51026705,9.9e-05,2]
[327275558,1715955175838,344.26375053,9.9e-05,2]
[327275559,1715955358045,3023.6,0.00025,60]
[327275583,1715955682555,157.91467169,9.999e-05,2]
[327275597,1715956031172,-157.91467169,0.00015685,2]
[327275598,1715956031191,-246.656892,0.00015686,2]
[327275599,1715956031211,-658.00018209,0.00016437,2]
[327275600,1715956031232,-249.52,0.00016438,2]
[327275601,1715956031252,-199.25,0.00016438,2]
[327275602,1715956031272,-500.0,0.00016438,2]
[327275603,1715956031297,-118.65057387,0.00016438,2]
[327275690,1715956235174,-300.68929369,0.00016437,2]
[327275692,1715956235185,-502.20593887,0.00016438,2]
[327275694,1715956235194,-501.06667719,0.00016438,2]
[327275696,1715956235204,-502.06905261,0.00016438,2]
[327275698,1715956235214,-500.0,0.00016438,2]
[327275699,1715956235223,-500.0,0.00016438,2]
[327275701,1715956235233,-502.52218532,0.00016438,2]
[327275703,1715956235243,-500.0,0.00016438,2]
[327275705,1715956235253,-500.0,0.00016438,2]
[327275707,1715956235263,-500.79962334,0.00016438,2]
[327275708,1715956235273,-500.90492189,0.00016438,2]
[327275710,1715956235283,-502.09119767,0.00016438,2]
[327275712,1715956235292,-500.0,0.00016438,2]
[327275714,1715956235302,-500.9333789,0.00016438,2]
[327275716,1715956235312,-268.35997529,0.00016438,2]
[327275717,1715956235321,-500.0,0.00016438,2]
[327275718,1715956235331,-247.51575734,0.00016438,2]
[327275719,1715956235347,-246.07250585,0.00016438,2]
[327275720,1715956235357,-501.3802005,0.00016438,2]
[327275721,1715956235367,-500.69953264,0.00016438,2]
[327275722,1715956235380,-513.427585,0.00016438,2]
[327275723,1715956235390,-501.63264309,0.00016438,2]
[327275724,1715956235400,-501.74924601,0.00016438,2]
[327275725,1715956235409,-501.78493775,0.00016438,2]
[327275726,1715956235420,-500.0,0.00016438,2]
[327275727,1715956235431,-500.0,0.00016438,2]
[327275728,1715956235440,-543.09779564,0.00016438,2]
[327275729,1715956235450,-231.21454636,0.00016438,2]
[327275730,1715956235460,-500.0,0.00016438,2]
[327275731,1715956235470,-500.0,0.00016438,2]
[327275732,1715956235481,-330.03850358,0.00016438,2]
[327275733,1715956235491,-500.0,0.00016438,2]
[327275734,1715956235501,-500.0,0.00016438,2]
[327275735,1715956235511,-500.0,0.00016438,2]
[327275736,1715956235521,-500.0,0.00016438,2]
[327275737,1715956235532,-500.0,0.00016438,2]
[327275738,1715956235542,-500.0,0.00016438,2]
[327275739,1715956235552,-273.93944197,0.000165,2]
[327275740,1715956235562,-1052.53743763,0.00016608,2]
[327275741,1715956235572,-851.87792644,0.00016611,2]
[327275742,1715956235583,-500.0,0.00016708,2]
[327275743,1715956235593,-500.0,0.00016708,2]
[327275744,1715956235604,-8303.34,0.00016708,2]
[327275745,1715956235614,-777.93,0.00016708,2]
[327275746,1715956235624,-500.0,0.00016708,2]
[327275747,1715956235634,-500.0,0.00016708,2]
[327275748,1715956235644,-894.07,0.00016708,2]
[327275749,1715956235654,-500.0,0.00016708,2]
[327275750,1715956235664,-500.0,0.00016708,2]
[327275751,1715956235674,-504.05135714,0.00016708,2]
[327275752,1715956235684,-500.0,0.00016708,2]
[327275753,1715956235695,-500.0,0.00016708,2]
[327275754,1715956235705,-500.0,0.00016708,2]
[327275755,1715956235715,-500.0,0.00016708,2]
[327275756,1715956235725,-500.0,0.00016709,2]
[327275757,1715956235735,-500.0,0.00016709,2]
[327275758,1715956235745,-387.1,0.00016709,2]
[327275759,1715956235755,-500.0,0.00016709,2]
[327275760,1715956235765,-500.0,0.00016709,2]
[327275761,1715956235775,-500.0,0.00016709,2]
[327275762,1715956235784,-1004.7,0.00016709,2]
[327275763,1715956235795,-500.0,0.00016709,2]
[327275764,1715956235805,-290.42490605,0.00016709,2]
[327275797,1715956238373,-503.36305944,0.00016708,2]
[327275799,1715956238384,-500.0,0.00016708,2]
[327275801,1715956238394,-209.57509395,0.00016709,2]
[327275803,1715956238404,-3283.01,0.00016709,2]
[327275805,1715956238414,-500.0,0.00016709,2]
[327275807,1715956238428,-500.0,0.00016709,2]
[327275809,1715956238438,-500.0,0.00016709,2]
[327275811,1715956238448,-500.0,0.00016709,2]
[327275813,1715956238459,-557.72,0.00016709,2]
[327275815,1715956238470,-500.0,0.00016709,2]
[327275817,1715956238480,-500.0,0.00016709,2]
[327275819,1715956238491,-500.0,0.00016709,2]
[327275821,1715956238501,-500.0,0.00016709,2]
[327275823,1715956238511,-4026.52,0.00016709,2]
[327275825,1715956238522,-500.0,0.00016709,2]
[327275827,1715956238533,-500.0,0.0001671,2]
[327275829,1715956238543,-500.0,0.0001671,2]
[327275831,1715956238554,-500.0,0.0001671,2]
[327275833,1715956238564,-500.0,0.0001671,2]
[327275835,1715956238575,-500.0,0.0001671,2]
[327275837,1715956238586,-500.0,0.0001671,2]
[327275839,1715956238600,-500.0,0.0001671,2]
[327275841,1715956238611,-506.49840294,0.0001671,2]
[327275843,1715956238621,-500.0,0.0001671,2]
[327275846,1715956238631,-500.0,0.0001671,2]
[327275848,1715956238641,-501.15457218,0.0001671,2]
[327275849,1715956238651,-444.05047531,0.0001671,2]
[327275851,1715956238660,-500.0,0.0001671,2]
[327275854,1715956238671,-500.0,0.0001671,2]
[327275856,1715956238681,-503.35615081,0.0001671,2]
[327275858,1715956238691,-500.0,0.0001671,2]
[327275859,1715956238701,-500.0,0.0001671,2]
[327275861,1715956238711,-504.84163193,0.0001671,2]
[327275864,1715956238721,-531.34110359,0.0001671,2]
[327275866,1715956238731,-500.0,0.0001671,2]
[327275867,1715956238741,-500.0,0.0001671,2]
[327275869,1715956238751,-574.8269778,0.0001671,2]
[327275871,1715956238761,-500.0,0.0001671,2]
[327275873,1715956238772,-517.81911018,0.0001671,2]
[327275876,1715956238782,-519.09,0.0001671,2]
[327275878,1715956238793,-500.0,0.0001671,2]
[327275880,1715956238803,-500.0,0.0001671,2]
[327275882,1715956238813,-500.0,0.0001671,2]
[327275884,1715956238823,-500.0,0.0001671,2]
[327275886,1715956238833,-500.0,0.0001671,2]
[327275888,1715956238843,-500.0,0.0001671,2]
[327275890,1715956238860,-500.0,0.0001671,2]
[327275892,1715956238870,-620.64143047,0.0001671,2]
[327275908,1715956239022,-500.0,0.0001671,2]
[327275910,1715956239033,-500.0,0.0001671,2]
[327275912,1715956239043,-616.88,0.0001671,2]
[327275914,1715956239055,-500.0,0.0001671,2]
[327275916,1715956239065,-500.47322055,0.0001671,2]
[327275918,1715956239075,-500.0,0.0001671,2]
[327275920,1715956239085,-500.0,0.0001671,2]
[327275922,1715956239095,-501.76010348,0.0001671,2]
[327275924,1715956239108,-512.86079033,0.0001671,2]
[327275925,1715956239117,-500.0,0.0001671,2]
[327275927,1715956239127,-519.76,0.0001671,2]